bitfinex/quotes_BTCUSD_20251010
["timestamp","ask_amount","ask_price","bid_price","bid_amount"]
[1760140366488,0.15417104,113460.0,113440.0,0.0175875]
[1760140366642,0.15417104,113460.0,113440.0,0.02284047]
[1760140366847,0.17628911,113450.0,113440.0,0.02284047]
[1760140367082,0.17628911,113450.0,113440.0,0.00015148]
[1760140367083,0.15748784,113450.0,113440.0,0.00015148]
[1760140367287,0.15748784,113450.0,113440.0,0.02284047]
[1760140367496,0.17628911,113450.0,113440.0,0.02284047]
[1760140367698,0.17628911,113450.0,113440.0,0.02384047]
[1760140367859,0.17628911,113450.0,113440.0,0.04107497]
[1760140368059,0.15417104,113460.0,113450.0,0.02268899]
[1760140368255,0.15417104,113460.0,113450.0,0.04102487]
[1760140368465,0.13205695,113460.0,113450.0,0.01833588]
[1760140368823,0.13205695,113460.0,113440.0,0.00015148]
[1760140368824,0.17628911,113450.0,113440.0,0.00015148]
[1760140369218,0.17628911,113450.0,113440.0,0.02284047]
[1760140369420,0.13205695,113460.0,113450.0,0.02268899]
[1760140369646,0.26368698,113530.0,113450.0,0.12789931]
[1760140369769,0.18500651,113510.0,113480.0,0.02268899]
[1760140369971,0.18500651,113510.0,113490.0,0.04508477]
[1760140370467,0.21759456,113530.0,113500.0,0.02268899]
[1760140370468,0.18500402,113530.0,113500.0,0.02268899]
[1760140370660,0.00880824,113530.0,113500.0,0.05066329]
[1760140370866,0.18548205,113530.0,113510.0,0.02268899]
[1760140371267,0.00050503,113530.0,113510.0,0.04505144]
[1760140371484,0.00050503,113530.0,113520.0,0.04505144]
[1760140371902,0.00050503,113530.0,113520.0,0.06872961]
[1760140372113,0.00050503,113530.0,113520.0,0.04505144]
[1760140372370,0.00050503,113530.0,113520.0,0.02268899]
[1760140372691,0.17666992,113530.0,113520.0,0.02268899]
[1760140372892,0.17666992,113530.0,113520.0,0.01744746]
[1760140372893,0.00050503,113530.0,113520.0,0.01744746]
[1760140373082,0.00050503,113530.0,113520.0,0.03813833]
[1760140373249,0.00050503,113530.0,113520.0,0.01744746]
[1760140373430,0.18547816,113530.0,113520.0,0.01644746]
[1760140373779,0.18547816,113530.0,113480.0,0.02069087]
[1760140373780,0.18547816,113530.0,113510.0,0.01644746]
[1760140373992,0.1761804,113520.0,113510.0,0.01644746]
[1760140374130,0.18549245,113530.0,113510.0,0.01644746]
[1760140374330,0.18549245,113530.0,113450.0,0.365]
[1760140374331,0.18547829,113530.0,113520.0,0.01644746]
[1760140374933,0.1761804,113520.0,113510.0,0.01644746]
[1760140375135,0.18500972,113510.0,113490.0,0.01644746]
[1760140375334,0.00880979,113510.0,113490.0,0.01644746]
[1760140375584,0.18498942,113520.0,113500.0,0.01644746]
[1760140376170,0.18547829,113530.0,113520.0,0.01644746]
[1760140376415,0.1761804,113520.0,113510.0,0.01644746]
[1760140376943,0.18500769,113510.0,113500.0,0.01644746]
[1760140377140,0.00880979,113510.0,113490.0,0.01644746]
[1760140377298,0.17621145,113500.0,113490.0,0.01644746]
[1760140377499,0.18500571,113510.0,113490.0,0.01644746]
[1760140377690,0.18500571,113510.0,113460.0,0.02069087]
[1760140377691,0.18548973,113530.0,113510.0,0.01644746]
[1760140377884,0.18500571,113510.0,113460.0,0.02069087]
[1760140378087,0.18498989,113520.0,113490.0,0.01644746]
[1760140378287,0.17621145,113500.0,113490.0,0.01644746]
[1760140378704,0.18498989,113520.0,113500.0,0.01644746]
[1760140378884,0.17621145,113500.0,113490.0,0.01644746]
[1760140379082,0.17621145,113500.0,113460.0,0.02069087]
[1760140379305,0.18505644,113480.0,113470.0,0.01644746]
[1760140379519,0.18045784,113490.0,113430.0,0.0202292]
[1760140379520,0.00421724,113490.0,113480.0,0.01644746]
[1760140379721,0.18044422,113490.0,113480.0,0.01644746]
[1760140379921,0.18500784,113510.0,113480.0,0.01644746]
[1760140380189,0.1762425,113480.0,113430.0,0.04381384]
[1760140380368,0.18505462,113480.0,113470.0,0.01644746]
[1760140380585,0.18502274,113500.0,113470.0,0.01644746]
[1760140380813,0.00880902,113520.0,113490.0,0.01644746]
[1760140381013,0.18496024,113540.0,113510.0,0.01644746]
[1760140381255,0.18497332,113530.0,113500.0,0.01644746]
[1760140381598,0.18497332,113530.0,113480.0,0.01744746]
[1760140381599,0.17621145,113500.0,113480.0,0.01744746]
[1760140381721,0.17622698,113490.0,113480.0,0.001]
[1760140381926,0.17627357,113460.0,113450.0,0.01644746]
[1760140382178,0.17627357,113460.0,113420.0,0.01644746]
[1760140382179,0.18513663,113430.0,113420.0,0.01644746]
[1760140382737,0.17633574,113420.0,113410.0,0.01644746]
[1760140382940,0.17369071,113420.0,113410.0,0.01659894]
[1760140383323,0.17369071,113420.0,113410.0,0.00015148]
[1760140383731,0.18513426,113440.0,113410.0,0.01659894]
[1760140384015,0.17632025,113430.0,113410.0,0.01659894]
[1760140384229,0.17632025,113430.0,113420.0,0.01644746]
[1760140384532,0.18513426,113440.0,113420.0,0.01644746]
[1760140384676,0.17631202,113450.0,113440.0,0.01644746]
[1760140384882,0.17630465,113440.0,113430.0,0.01644746]
[1760140385085,0.17631202,113450.0,113430.0,0.01644746]
[1760140385281,0.18508724,113460.0,113440.0,0.01644746]
[1760140385551,0.00881057,113500.0,113470.0,0.01644746]
[1760140385722,0.18502441,113500.0,113480.0,0.01644746]
[1760140385932,0.00881057,113500.0,113490.0,0.01644746]
[1760140386071,0.18502202,113500.0,113490.0,0.01644746]
[1760140386472,0.1762425,113480.0,113470.0,0.01644746]
[1760140386698,0.00881445,113450.0,113420.0,0.04435706]
[1760140386873,0.17625804,113470.0,113450.0,0.01644746]
[1760140386874,0.17628307,113460.0,113450.0,0.01644746]
[1760140388077,0.1187979,113470.0,113450.0,0.01644746]
[1760140388271,0.17628307,113460.0,113450.0,0.01644746]
[1760140388692,0.1187979,113470.0,113450.0,0.01644746]
[1760140388890,0.1187979,113470.0,113460.0,0.01644746]
[1760140389294,0.18505462,113480.0,113470.0,0.01644746]
[1760140389551,0.1762425,113480.0,113470.0,0.01644746]
[1760140389744,0.18503832,113490.0,113470.0,0.01644746]
[1760140389939,0.1762425,113480.0,113470.0,0.01644746]
[1760140390150,0.17625804,113470.0,113460.0,0.01644746]
[1760140390672,0.17625804,113470.0,113450.0,0.01644746]
[1760140390673,0.17627357,113460.0,113450.0,0.01644746]
[1760140392025,0.18505462,113480.0,113470.0,0.01644746]
[1760140392617,0.1762425,113480.0,113470.0,0.01644746]
[1760140393024,0.17625804,113470.0,113460.0,0.01644746]
[1760140393468,0.18554304,113490.0,113450.0,0.001]
[1760140393469,0.18554304,113490.0,113470.0,0.01644746]
[1760140393641,0.18554304,113490.0,113480.0,0.01644746]
[1760140394050,0.1762425,113480.0,113470.0,0.01644746]
[1760140394271,0.1762425,113480.0,113460.0,0.01644746]
[1760140394485,0.17625804,113470.0,113460.0,0.01644746]
[1760140395713,0.17625804,113470.0,113460.0,0.01744746]
[1760140395911,0.00881756,113410.0,113400.0,0.01644746]
[1760140396035,0.18516885,113410.0,113400.0,0.01644746]
[1760140397098,0.18516885,113410.0,113400.0,0.01659894]
[1760140397646,0.17635089,113420.0,113400.0,0.01659894]
[1760140397859,0.18515228,113440.0,113420.0,0.01644746]
[1760140398106,0.17634834,113460.0,113450.0,0.01644746]
[1760140398107,0.18516201,113460.0,113450.0,0.01644746]
[1760140398466,0.17630161,113450.0,113440.0,0.01644746]
[1760140398690,0.18516201,113460.0,113450.0,0.01644746]
[1760140399090,0.17632503,113430.0,113420.0,0.01644746]
[1760140399261,0.18514103,113430.0,113420.0,0.01659894]
[1760140399680,0.18512536,113450.0,113430.0,0.01644746]
[1760140399881,0.18512536,113450.0,113440.0,0.01644746]
[1760140399882,0.18510356,113450.0,113440.0,0.01644746]
[1760140400204,0.17628911,113450.0,113440.0,0.01644746]
[1760140400405,0.18516201,113460.0,113440.0,0.01644746]
[1760140400605,0.18511545,113470.0,113450.0,0.01644746]
[1760140400920,0.18507936,113500.0,113470.0,0.01644746]
[1760140401122,0.17623431,113490.0,113480.0,0.01644746]
[1760140401459,0.17621145,113500.0,113490.0,0.01644746]
[1760140402071,0.17671648,113500.0,113490.0,0.01644746]
[1760140402964,0.17407331,113500.0,113490.0,0.01644746]
[1760140405591,0.00050503,113500.0,113490.0,0.01644746]
[1760140405807,0.17671648,113500.0,113490.0,0.01644746]
[1760140411636,0.00050503,113500.0,113490.0,0.01644746]
[1760140411840,0.17671648,113500.0,113490.0,0.01644746]
[1760140412723,0.17626715,113470.0,113460.0,0.01644746]
[1760140412912,0.18508005,113470.0,113460.0,0.01644746]
[1760140413715,0.17627357,113460.0,113450.0,0.01644746]
[1760140415982,0.18507339,113480.0,113470.0,0.01644746]
[1760140416180,0.18507339,113480.0,113470.0,0.01659894]
[1760140416713,0.18507339,113480.0,113470.0,0.00015148]
[1760140417347,0.18507339,113480.0,113470.0,1e-08]
[1760140417981,0.26388781,113480.0,113470.0,1e-08]
[1760140418396,0.18515783,113420.0,113410.0,0.01644746]
[1760140418597,0.18515783,113420.0,113360.0,0.04799768]
[1760140418598,0.18517218,113410.0,113400.0,0.01644746]
[1760140418801,0.18517218,113410.0,113400.0,0.01659874]
[1760140419539,0.18517218,113410.0,113400.0,0.00015128]
[1760140420054,0.17641351,113370.0,113360.0,0.01644747]
[1760140420259,0.17656473,113370.0,113360.0,0.01644747]
[1760140421221,0.17656473,113370.0,113360.0,1e-08]
[1760140421420,0.17656473,113370.0,113360.0,0.01644747]
[1760140422013,0.00015122,113370.0,113360.0,0.01644747]
[1760140422439,0.17756473,113370.0,113360.0,0.01644747]
[1760140422814,0.17391853,113370.0,113360.0,0.01644747]
[1760140423210,0.17391853,113370.0,113360.0,1e-08]
[1760140423573,0.17391853,113370.0,113360.0,0.01644747]
[1760140424195,0.18520193,113390.0,113380.0,0.01644746]
[1760140424437,0.00881756,113410.0,113380.0,0.01644746]
[1760140424620,0.17636684,113400.0,113390.0,0.01644746]
[1760140425394,0.17636684,113400.0,113360.0,0.34000001]
[1760140425395,0.17738239,113390.0,113380.0,0.01644746]
[1760140425611,0.17640447,113380.0,113370.0,0.01644746]
[1760140425842,0.17641351,113370.0,113360.0,0.01644747]
[1760140427379,0.17641351,113370.0,113360.0,1e-08]
[1760140428100,0.17641351,113370.0,113360.0,0.00100001]
[1760140428274,0.10332268,113370.0,113350.0,0.0052]
[1760140428478,0.10332268,113370.0,113340.0,8e-05]
[1760140428479,0.17642907,113360.0,113340.0,8e-05]
[1760140428679,0.17644464,113350.0,113340.0,8e-05]
[1760140429451,0.17644464,113350.0,113340.0,0.01652746]
[1760140431352,0.17744464,113350.0,113340.0,8e-05]
[1760140432199,0.15525955,113350.0,113340.0,8e-05]
[1760140433160,0.15525955,113350.0,113310.0,0.50760944]
[1760140433161,0.17649135,113320.0,113310.0,0.0002]
[1760140434411,0.17799585,113320.0,113310.0,0.0002]
[1760140434814,0.17699585,113320.0,113310.0,0.0002]
[1760140435199,0.17799585,113320.0,113310.0,0.0002]
[1760140435635,0.17699585,113320.0,113310.0,0.0002]
[1760140436400,0.15483092,113320.0,113310.0,0.0002]
[1760140438389,0.15056705,113320.0,113310.0,0.0002]
[1760140440443,0.12753478,113320.0,113310.0,0.0002]
[1760140440643,0.12753478,113320.0,113310.0,0.3502]
[1760140440913,0.0610411,113320.0,113310.0,0.3502]
[1760140443182,0.0005045,113320.0,113310.0,0.3502]
[1760140443382,0.0005045,113320.0,113310.0,1.01615535]
[1760140443737,0.0005045,113320.0,113310.0,1.15947535]
[1760140443887,0.0005045,113320.0,113310.0,1.06334535]
[1760140444088,0.18528752,113400.0,113350.0,0.16740944]
[1760140444304,0.18520192,113390.0,113360.0,0.02601886]
[1760140444538,0.18528752,113400.0,113360.0,0.04688527]
[1760140444744,0.17641154,113430.0,113370.0,0.02086641]
[1760140444745,0.18522754,113430.0,113370.0,0.02086641]
[1760140444950,0.00881834,113400.0,113380.0,0.34]
[1760140445190,0.00881756,113410.0,113380.0,0.36086641]
[1760140445382,0.00881756,113410.0,113390.0,0.02598553]
[1760140445383,0.18516975,113410.0,113390.0,0.02598553]
[1760140445613,0.17635156,113410.0,113390.0,0.18827585]
[1760140445815,0.18515389,113420.0,113390.0,0.02086641]
[1760140446021,0.008816,113430.0,113390.0,0.10836696]
[1760140446230,0.008816,113430.0,113390.0,0.2757764]
[1760140446231,0.18513807,113430.0,113390.0,0.2757764]
[1760140446347,0.18515344,113420.0,113390.0,0.25490999]
[1760140446558,0.00015147,113420.0,113390.0,0.25490999]
[1760140446796,0.17648735,113420.0,113390.0,0.25490999]
[1760140446950,0.17636271,113410.0,113390.0,0.25490999]
[1760140447164,0.17636271,113410.0,113390.0,0.16740944]
[1760140447386,0.00015147,113420.0,113390.0,0.16740944]
[1760140447586,0.00015147,113420.0,113390.0,0.25590999]
[1760140447789,0.17648782,113420.0,113390.0,0.25590999]
[1760140447990,0.17648782,113420.0,113390.0,0.25490999]
[1760140448195,0.17635326,113410.0,113390.0,0.25490999]
[1760140448410,0.1853046,113420.0,113390.0,0.25490999]
[1760140448611,0.17635135,113410.0,113390.0,0.08750055]
[1760140448828,0.00896825,113420.0,113390.0,0.25490999]
[1760140449016,0.00015147,113420.0,113390.0,0.25490999]
[1760140450073,0.17648746,113420.0,113390.0,0.27847538]
[1760140450280,0.00015147,113420.0,113400.0,0.08750055]
[1760140450481,0.18490325,113430.0,113400.0,0.08750055]
[1760140450689,0.17633612,113420.0,113400.0,0.08765202]
[1760140451595,0.18490325,113430.0,113400.0,0.08765202]
[1760140451801,0.17632166,113430.0,113400.0,0.42765202]
[1760140452047,0.16299286,113430.0,113400.0,0.61677697]
[1760140452214,0.17633665,113420.0,113400.0,0.42865202]
[1760140452417,0.17633665,113420.0,113400.0,0.61832935]
[1760140452628,0.17633665,113420.0,113400.0,0.59606146]
[1760140453020,0.16299286,113430.0,113400.0,0.59606146]
[1760140453222,0.17633617,113420.0,113400.0,0.59606146]
[1760140453433,0.17633617,113420.0,113400.0,0.59506146]
[1760140453639,0.17633617,113420.0,113400.0,0.59606146]
[1760140454199,0.17633617,113420.0,113400.0,0.42765202]
[1760140454402,0.17633617,113420.0,113400.0,0.59506146]
[1760140454592,0.17633581,113420.0,113400.0,0.59506146]
[1760140454994,0.17633581,113420.0,113400.0,0.42765202]
[1760140455404,0.15418985,113420.0,113400.0,0.42765202]
[1760140455605,0.15418985,113420.0,113400.0,0.61996593]
[1760140455897,0.15418985,113420.0,113400.0,0.45255649]
[1760140456075,0.15418985,113420.0,113400.0,0.59506146]
[1760140456431,0.15418985,113420.0,113400.0,0.25506146]
[1760140456640,0.00881523,113440.0,113400.0,0.25506146]
[1760140456848,0.18513635,113430.0,113400.0,0.25506146]
[1760140457078,0.1763361,113420.0,113400.0,0.25506146]
[1760140457823,0.17633606,113420.0,113400.0,0.27738093]
[1760140458059,0.15919298,113410.0,113400.0,0.08765202]
[1760140458270,0.17633606,113420.0,113400.0,0.08765202]
[1760140458444,0.17635129,113410.0,113400.0,0.00115147]
[1760140458639,0.11075043,113380.0,113340.0,0.16740944]
[1760140458840,0.18523418,113370.0,113340.0,0.25506121]
[1760140459040,0.17642966,113360.0,113340.0,0.25506121]
[1760140459254,0.17642966,113360.0,113340.0,0.08765177]
[1760140460387,0.17644464,113350.0,113340.0,0.00015122]
[1760140465044,0.17649135,113320.0,113310.0,0.0002]
[1760140465191,0.17664252,113320.0,113310.0,0.0002]
[1760140469378,0.17764252,113320.0,113310.0,0.0002]
[1760140469858,0.00015117,113320.0,113310.0,0.0002]
[1760140470075,0.17764252,113320.0,113310.0,0.0002]
[1760140470210,0.17650692,113310.0,113300.0,0.0027]
[1760140470427,0.17650692,113310.0,113300.0,1e-08]
[1760140471612,0.17650692,113310.0,113240.0,1e-08]
[1760140471613,0.17660044,113250.0,113240.0,1e-08]
[1760140472368,0.20160042,113250.0,113220.0,1e-08]
[1760140472590,0.17663163,113230.0,113220.0,1e-08]
[1760140472787,0.1767826,113230.0,113220.0,1e-08]
[1760140473976,0.00015097,113230.0,113220.0,1e-08]
[1760140474389,0.1767826,113230.0,113220.0,1e-08]
[1760140474688,0.54178258,113230.0,113220.0,1e-08]
[1760140475390,0.54278258,113230.0,113220.0,1e-08]
[1760140475791,0.1767826,113230.0,113220.0,1e-08]
[1760140476272,0.1777826,113230.0,113220.0,1e-08]
[1760140476673,0.1767826,113230.0,113220.0,1e-08]
[1760140478764,0.1767826,113230.0,113190.0,8e-05]
[1760140478765,0.17667844,113200.0,113190.0,8e-05]
[1760140482103,0.17667844,113200.0,113190.0,0.16748944]
[1760140482358,0.17667844,113200.0,113190.0,8e-05]
[1760140485396,0.00883626,113170.0,113140.0,0.01728751]
[1760140485605,0.19374698,113170.0,113140.0,0.01728751]
[1760140485810,0.19374698,113170.0,113130.0,0.34]
[1760140486005,0.19374698,113170.0,113130.0,0.42750055]
[1760140486211,0.19374698,113170.0,113130.0,0.45074035]
[1760140486650,0.19389784,113170.0,113130.0,0.45074035]
[1760140486980,0.18557794,113160.0,113130.0,0.45074035]
[1760140487371,0.18557794,113160.0,113130.0,0.42750055]
[1760140487570,0.00883704,113160.0,113150.0,0.16740944]
[1760140487775,0.19389784,113170.0,113160.0,0.16740944]
[1760140487932,0.18571251,113170.0,113160.0,0.16740944]
[1760140488136,0.17687614,113170.0,113160.0,0.16740944]
[1760140488520,0.00015086,113170.0,113160.0,0.16740944]
[1760140488721,0.18557842,113160.0,113150.0,0.16740944]
[1760140489163,0.00883704,113160.0,113150.0,0.16740944]
[1760140489568,0.17687614,113170.0,113160.0,0.16740944]
[1760140489925,0.00015086,113170.0,113160.0,0.16840944]
[1760140490128,0.17687614,113170.0,113160.0,0.16840944]
[1760140490804,0.00015086,113170.0,113160.0,0.16840944]
[1760140491385,0.00015086,113170.0,113160.0,0.16740944]
[1760140491586,0.00015086,113170.0,113160.0,0.25490999]
[1760140491790,0.00015086,113170.0,113160.0,0.30425425]
[1760140492293,0.00015086,113170.0,113160.0,0.28300964]
[1760140492657,0.00015086,113170.0,113160.0,0.28400964]
[1760140492807,0.00015086,113170.0,113160.0,0.16840944]
[1760140493013,0.00015086,113170.0,113160.0,0.62400964]
[1760140493214,0.00010086,113170.0,113160.0,0.5577537]
[1760140493420,0.00010086,113170.0,113160.0,0.50840944]
[1760140493716,0.00010086,113170.0,113160.0,0.6171546]
[1760140493919,0.00010086,113170.0,113160.0,0.6161546]
[1760140494125,0.00010086,113170.0,113160.0,0.6181546]
[1760140494340,0.00010086,113170.0,113160.0,0.64555353]
[1760140494776,0.00010086,113170.0,113160.0,0.77967353]
[1760140494975,0.00010086,113170.0,113160.0,0.87518353]
[1760140495191,0.00010086,113170.0,113160.0,0.71898353]
[1760140495404,0.00010086,113170.0,113160.0,0.67055353]
[1760140495640,0.00010086,113170.0,113160.0,0.50114409]
[1760140495839,0.00010086,113170.0,113160.0,0.45489948]
[1760140496063,0.00010086,113170.0,113160.0,0.25490999]
[1760140496268,0.00010086,113170.0,113160.0,0.27990999]
[1760140496484,0.00010086,113170.0,113160.0,0.28282936]
[1760140496706,0.00010086,113170.0,113160.0,0.25690999]
[1760140497432,0.00010086,113170.0,113160.0,0.25490999]
[1760140497635,0.00010086,113170.0,113160.0,0.25690999]
[1760140498050,0.00010086,113170.0,113160.0,0.25490999]
[1760140498477,0.00010086,113170.0,113160.0,0.08750055]
[1760140498698,0.00010086,113170.0,113160.0,0.25490999]
[1760140500559,0.00010086,113170.0,113160.0,0.25590999]
[1760140500798,0.00010086,113170.0,113160.0,0.16840944]
[1760140501005,0.00010086,113170.0,113160.0,0.08850055]
[1760140501280,0.00010086,113170.0,113160.0,0.87170062]
[1760140501484,0.18550152,113260.0,113230.0,0.50740944]
[1760140501485,0.00882924,113260.0,113230.0,0.50740944]
[1760140501689,0.00882924,113260.0,113250.0,0.16740944]
[1760140501690,0.00015156,113260.0,113250.0,0.16740944]
[1760140502100,0.1767364,113260.0,113250.0,0.16740944]
[1760140502311,0.18556564,113260.0,113230.0,0.42750055]
[1760140502484,0.18556564,113260.0,113250.0,0.16740944]
[1760140503233,0.15839309,113280.0,113250.0,0.16740944]
[1760140503433,0.17658427,113270.0,113260.0,0.16740944]
[1760140503581,0.18541273,113270.0,113260.0,0.16740944]
[1760140503778,0.17658088,113310.0,113270.0,0.16740944]
[1760140504011,0.17649135,113320.0,113310.0,0.14633385]
[1760140504207,0.1853775,113330.0,113310.0,0.14633385]
[1760140504416,0.17649135,113320.0,113300.0,0.14633385]
[1760140504641,0.17650692,113310.0,113300.0,0.14633385]
[1760140504846,0.17652315,113300.0,113290.0,0.14633385]
[1760140505091,0.17656815,113280.0,113270.0,0.03164434]
[1760140505299,0.17655367,113280.0,113270.0,0.04259169]
[1760140505501,0.17655367,113280.0,113270.0,0.01892964]
[1760140505836,0.17658484,113260.0,113250.0,0.1699959]
[1760140506077,0.17658484,113260.0,113250.0,0.18892903]
[1760140506274,0.17658073,113270.0,113260.0,0.14633385]
[1760140506477,0.17658073,113270.0,113260.0,0.16526698]
[1760140506884,0.18538135,113280.0,113260.0,0.14633385]
[1760140507205,0.00882612,113300.0,113270.0,0.14733385]
[1760140507401,0.18535959,113340.0,113310.0,0.14633385]
[1760140507605,0.18535959,113340.0,113270.0,0.47786636]
[1760140507606,0.0004,113350.0,113270.0,0.39547902]
[1760140507747,0.17646058,113340.0,113330.0,0.14633385]
[1760140508352,0.00882456,113320.0,113270.0,0.365]
[1760140508551,0.00882456,113320.0,113310.0,0.14633385]
[1760140508552,0.18546739,113320.0,113310.0,0.14633385]
[1760140508852,0.18546739,113320.0,113280.0,0.42750055]
[1760140508853,0.00882534,113310.0,113280.0,0.42750055]
[1760140509039,0.18546739,113320.0,113310.0,0.14633385]
[1760140509040,0.00015148,113320.0,113310.0,0.14633385]
[1760140509349,0.00015148,113320.0,113310.0,0.62931342]
[1760140509556,0.00015148,113320.0,113310.0,0.79768394]
[1760140509759,0.00015148,113320.0,113310.0,0.77622342]
[1760140510106,0.00015148,113320.0,113310.0,0.5738344]
[1760140510346,0.00015148,113320.0,113310.0,0.5748344]
[1760140510770,0.00015148,113320.0,113280.0,0.03033403]
[1760140510966,0.00882534,113310.0,113280.0,0.08750055]
[1760140511173,0.17652301,113300.0,113240.0,0.07012257]
[1760140511391,0.18536846,113290.0,113280.0,0.14633385]
[1760140511590,0.00882768,113280.0,113250.0,0.08750055]
[1760140511886,0.18538483,113280.0,113250.0,0.08750055]
[1760140512113,0.18539818,113270.0,113220.0,0.025]
[1760140512334,0.18539818,113270.0,113230.0,0.08750055]
[1760140512516,0.18538347,113280.0,113260.0,0.14633385]
[1760140512748,0.18538347,113280.0,113270.0,0.14633385]
[1760140513124,0.18536846,113290.0,113260.0,0.0005045]
[1760140513125,0.17652301,113300.0,113280.0,0.14633385]
[1760140513334,0.17653808,113290.0,113280.0,0.14633385]
[1760140513530,0.17653808,113290.0,113280.0,0.14733385]
[1760140513531,0.18536498,113290.0,113280.0,0.14733385]
[1760140513908,0.18536498,113290.0,113280.0,0.001]
[1760140514106,0.17653012,113300.0,113290.0,0.14633385]
[1760140514306,0.18546355,113230.0,113190.0,0.02366205]
[1760140514550,0.00050503,113230.0,113190.0,0.1062817]
[1760140514723,0.00050503,113230.0,113200.0,0.08750055]
[1760140515183,0.00050503,113230.0,113210.0,0.42750055]
[1760140515358,0.00050503,113230.0,113220.0,0.55250054]
[1760140515586,0.00050503,113230.0,113220.0,0.64342054]
[1760140515719,0.00050503,113230.0,113220.0,0.57917268]
[1760140516059,0.00050503,113230.0,113220.0,0.45417269]
[1760140516212,0.00050503,113230.0,113220.0,0.08750055]
[1760140516824,0.00050503,113230.0,113220.0,0.21250054]
[1760140517023,0.00050503,113230.0,113220.0,0.18750054]
[1760140517228,0.00050503,113230.0,113220.0,0.13758082]
[1760140517458,0.00050503,113230.0,113220.0,0.21250054]
[1760140517659,0.00050503,113230.0,113220.0,0.21550054]
[1760140517866,0.00050503,113230.0,113220.0,0.09050055]
[1760140518065,0.00050503,113230.0,113220.0,0.08750055]
[1760140518835,0.00050503,113230.0,113220.0,0.11364908]
[1760140519039,0.00050503,113230.0,113220.0,0.08750055]
[1760140519303,0.00050503,113230.0,113160.0,0.02366205]
[1760140519304,0.18548021,113220.0,113160.0,0.02366205]
[1760140519439,0.18548021,113220.0,113150.0,0.10411085]
[1760140519440,0.0088347,113190.0,113150.0,0.04246541]
[1760140519651,0.0088347,113190.0,113150.0,0.12996596]
[1760140519992,0.18553472,113190.0,113150.0,0.04246541]
[1760140520218,0.18553472,113190.0,113120.0,0.02366205]
[1760140520414,0.19384379,113180.0,113130.0,0.08750055]
[1760140520619,0.18550621,113180.0,113130.0,0.08750055]
[1760140520927,0.19434169,113180.0,113150.0,0.001]
[1760140521077,0.17672702,113170.0,113150.0,0.001]
[1760140521263,0.18556328,113170.0,113130.0,0.08750055]
[1760140521455,0.17674754,113160.0,113130.0,0.08750055]
[1760140521655,0.18556328,113170.0,113130.0,0.08850055]
[1760140521862,0.15886328,113170.0,113130.0,0.08850055]
[1760140522081,0.1673494,113170.0,113130.0,0.08850055]
[1760140522285,0.15851314,113170.0,113130.0,0.08850055]
[1760140522486,0.00050441,113180.0,113130.0,0.08850055]
[1760140522685,0.00806959,113180.0,113130.0,0.08850055]
[1760140522862,0.18551249,113200.0,113130.0,0.47303095]
[1760140523094,0.1855087,113210.0,113150.0,0.34]
[1760140523095,0.00883314,113210.0,113150.0,0.34]
[1760140523275,0.18550748,113210.0,113160.0,0.08750055]
[1760140523686,0.18554583,113180.0,113130.0,0.02135046]
[1760140523890,0.01690584,113170.0,113130.0,0.10885101]
[1760140524133,0.18553137,113190.0,113180.0,0.18554583]
[1760140524134,0.1413689,113190.0,113180.0,0.18554583]
[1760140524336,0.18553137,113190.0,113180.0,0.18554583]
[1760140525029,0.17669405,113190.0,113180.0,0.18554583]
[1760140525246,0.0088347,113190.0,113180.0,0.18569739]
[1760140525446,0.18552875,113190.0,113180.0,0.18569739]
[1760140526248,0.17669405,113190.0,113180.0,0.18569739]
[1760140526449,0.18551688,113210.0,113180.0,0.18569739]
[1760140526879,0.00883314,113210.0,113180.0,0.18569739]
[1760140527087,0.17669405,113190.0,113180.0,0.18569739]
[1760140527300,0.09333209,113190.0,113180.0,0.18569739]
[1760140527858,0.53333208,113190.0,113180.0,0.18569739]
[1760140528051,0.43333209,113190.0,113180.0,0.15506121]
[1760140528455,0.1541921,113150.0,113100.0,0.0075]
[1760140528823,0.18559462,113150.0,113100.0,0.00800441]
[1760140529156,0.18562766,113130.0,113100.0,0.00800441]
[1760140529363,0.17680441,113120.0,113100.0,0.00800441]
[1760140529775,0.18564199,113140.0,113100.0,0.00800441]
[1760140529980,0.00883938,113130.0,113100.0,0.00800441]
[1760140530174,0.17681902,113110.0,113100.0,0.00800441]
[1760140530381,0.17690254,113060.0,113040.0,0.00028]
[1760140530577,0.17740611,113060.0,113040.0,0.00028]
[1760140530900,0.17691287,113050.0,113040.0,0.00028]
[1760140531283,0.17740156,113060.0,113040.0,0.00028]
[1760140531562,0.17691287,113050.0,113040.0,0.00028]
[1760140533498,0.15691792,113050.0,113040.0,0.00028]
[1760140533847,0.15591792,113050.0,113040.0,0.00028]
[1760140534317,0.15691792,113050.0,113040.0,0.00028]
[1760140534537,0.001,113050.0,113040.0,0.00028]
[1760140535396,0.00050357,113060.0,113040.0,0.00028]
[1760140535726,0.001,113050.0,113040.0,0.00028]
[1760140536176,0.04148861,113040.0,113020.0,0.0002]
[1760140536595,0.04148861,113040.0,113020.0,0.01967365]
[1760140537028,0.00984486,113060.0,113020.0,0.01967365]
[1760140537220,0.18674277,113060.0,113020.0,0.01967365]
[1760140537422,0.18674277,113060.0,113020.0,0.0002]
[1760140537423,0.001,113060.0,113020.0,0.0002]
[1760140538166,0.17185995,113090.0,113020.0,0.0002]
[1760140538433,0.18571012,113080.0,113020.0,0.00070357]
[1760140539206,0.17688283,113070.0,113020.0,0.00070357]
[1760140539412,0.00884407,113070.0,113020.0,0.00070357]
[1760140539623,0.18572567,113070.0,113020.0,0.00070357]
[1760140540346,0.00884407,113070.0,113020.0,0.00070357]
[1760140540569,0.17689988,113060.0,113020.0,0.00070357]
[1760140540771,0.18574474,113060.0,113020.0,0.00070357]
[1760140541139,0.18572906,113070.0,113020.0,0.00070357]
[1760140541344,0.00884407,113070.0,113020.0,0.00070357]
[1760140541760,0.18574296,113060.0,113020.0,0.00070357]
[1760140542221,0.0159593,113080.0,113030.0,0.08750055]
[1760140542418,0.01495524,113120.0,113040.0,0.08750055]
[1760140542556,0.17678981,113130.0,113050.0,0.36308218]
[1760140542756,0.18560998,113160.0,113060.0,0.52750054]
[1760140542985,0.00883704,113160.0,113080.0,0.34]
[1760140543200,0.18560772,113170.0,113090.0,0.08750055]
[1760140543470,0.18561213,113140.0,113090.0,0.08750055]
[1760140543596,0.18557815,113160.0,113090.0,0.08750055]
[1760140543803,0.18560772,113170.0,113090.0,0.08765141]
[1760140544045,0.1855949,113150.0,113090.0,0.08765141]
[1760140544251,0.18560772,113170.0,113100.0,0.08750055]
[1760140544454,0.18557256,113190.0,113100.0,0.08750055]
[1760140544703,0.18558195,113210.0,113110.0,0.08750055]
[1760140544906,0.18558195,113210.0,113120.0,0.08750055]
[1760140545110,0.18552646,113220.0,113120.0,0.08750055]
[1760140545385,0.00883704,113160.0,113090.0,0.38666086]
[1760140545528,0.00883314,113210.0,113100.0,0.08750055]
[1760140545529,0.00883548,113180.0,113100.0,0.08750055]
[1760140545882,0.17672635,113170.0,113100.0,0.08750055]
[1760140546098,0.18556261,113170.0,113100.0,0.42750055]